[Event "Elitserien 2019/2020, round 7-9"]
[Site "Elite stadshotellet, Kungsgatan 6, Vaxjo, Sweden"]
[Date "2020.10.16"]
[Round "1.5"]
[White "Norberg, Erik"]
[Black "Vernersson, Per"]
[Result "1-0"]
[TimeControl "90 minutes for 40 moves + 30 minutes for the rest of the game + 30 seconds per move from move one."]
[WhiteTitle "CM"]
[WhiteFideId "1707965"]
[BlackFideId "1700863"]
[WhiteElo "2241"]
[BlackElo "2264"]

1. g3 {[%clk 01:30:39]} {[%emt 00:00:19]} d5 {[%clk 01:30:01]} {[%emt
00:00:59]} 2. Bg2 {[%clk 01:28:46]} {[%emt 00:02:25]} Nf6 {[%clk 01:29:58]}
{[%emt 00:00:33]} 3. Nf3 {[%clk 01:27:59]} {[%emt 00:01:15]} e6 {[%clk
01:26:25]} {[%emt 00:04:04]} 4. O-O {[%clk 01:27:20]} {[%emt 00:01:10]} Be7
{[%clk 01:26:35]} {[%emt 00:00:19]} 5. b3 {[%clk 01:23:15]} {[%emt 00:04:33]}
O-O {[%clk 01:25:48]} {[%emt 00:01:17]} 6. Bb2 {[%clk 01:21:49]} {[%emt
00:01:57]} Nbd7 {[%clk 01:20:40]} {[%emt 00:05:39]} 7. c4 {[%clk 01:14:21]}
{[%emt 00:07:58]} c6 {[%clk 01:20:27]} {[%emt 00:00:42]} 8. d4 {[%clk
01:11:25]} {[%emt 00:03:27]} Ne4 {[%clk 01:11:05]} {[%emt 00:09:52]} 9. Ne1
{[%clk 01:04:47]} {[%emt 00:07:08]} f5 {[%clk 01:08:28]} {[%emt 00:03:07]} 10.
Nd3 {[%clk 01:01:45]} {[%emt 00:03:33]} Qe8 {[%clk 01:06:58]} {[%emt 00:01:58]}
11. Nd2 {[%clk 00:57:49]} {[%emt 00:04:26]} Bd6 {[%clk 01:00:55]} {[%emt
00:06:34]} 12. Ne5 {[%clk 00:54:27]} {[%emt 00:03:52]} Nxe5 {[%clk 00:57:45]}
{[%emt 00:03:41]} 13. dxe5 {[%clk 00:49:30]} {[%emt 00:05:26]} Bc5 {[%clk
00:56:37]} {[%emt 00:01:38]} 14. Rc1 {[%clk 00:45:24]} {[%emt 00:04:37]} Qe7
{[%clk 00:56:06]} {[%emt 00:01:01]} 15. e3 {[%clk 00:40:16]} {[%emt 00:05:38]}
a5 {[%clk 00:50:09]} {[%emt 00:06:27]} 16. Qc2 {[%clk 00:36:44]} {[%emt
00:04:02]} b6 {[%clk 00:44:30]} {[%emt 00:06:09]} 17. Nf3 {[%clk 00:30:39]}
{[%emt 00:06:35]} Ba6 {[%clk 00:35:28]} {[%emt 00:09:32]} 18. Nd4 {[%clk
00:28:54]} {[%emt 00:02:15]} Rac8 {[%clk 00:35:20]} {[%emt 00:00:38]} 19. Rfd1
{[%clk 00:26:10]} {[%emt 00:03:12]} Rfd8 {[%clk 00:31:58]} {[%emt 00:03:53]} 20.
Qe2 {[%clk 00:20:51]} {[%emt 00:05:49]} a4 {[%clk 00:23:35]} {[%emt 00:08:53]}
21. Qh5 {[%clk 00:17:51]} {[%emt 00:03:31]} g6 {[%clk 00:20:43]} {[%emt
00:03:22]} 22. Qh6 {[%clk 00:16:36]} {[%emt 00:01:45]} Re8 {[%clk 00:16:51]}
{[%emt 00:04:22]} 23. h4 {[%clk 00:15:14]} {[%emt 00:01:52]} Qf7 {[%clk
00:15:02]} {[%emt 00:02:19]} 24. Qf4 {[%clk 00:08:12]} {[%emt 00:07:33]} Be7
{[%clk 00:11:56]} {[%emt 00:03:35]} 25. Qf3 {[%clk 00:04:25]} {[%emt 00:04:18]}
Bf8 {[%clk 00:10:24]} {[%emt 00:02:02]} 26. Qe2 {[%clk 00:04:17]} {[%emt
00:00:39]} Bg7 {[%clk 00:10:29]} {[%emt 00:00:24]} 27. Nf3 {[%clk 00:03:51]}
{[%emt 00:00:56]} Qe7 {[%clk 00:10:21]} {[%emt 00:00:38]} 28. Qe1 {[%clk
00:04:04]} {[%emt 00:00:18]} Red8 {[%clk 00:09:22]} {[%emt 00:01:28]} 29. Bf1
{[%clk 00:03:50]} {[%emt 00:00:44]} axb3 {[%clk 00:08:50]} {[%emt 00:01:02]} 30.
cxd5 {[%clk 00:03:54]} {[%emt 00:00:27]} Bxf1 {[%clk 00:09:04]} {[%emt
00:00:16]} 31. d6 {[%clk 00:04:18]} {[%emt 00:00:06]} Qa7 {[%clk 00:09:11]}
{[%emt 00:00:22]} 32. Qxf1 {[%clk 00:04:31]} {[%emt 00:00:17]} Nxd6 {[%clk
00:08:47]} {[%emt 00:00:54]} 33. axb3 {[%clk 00:04:33]} {[%emt 00:00:28]} Nf7
{[%clk 00:07:45]} {[%emt 00:01:32]} 34. Qc4 {[%clk 00:04:38]} {[%emt 00:00:25]}
Re8 {[%clk 00:07:34]} {[%emt 00:00:40]} 35. Rd2 {[%clk 00:04:12]} {[%emt
00:00:56]} Qc7 {[%clk 00:07:33]} {[%emt 00:00:30]} 36. Rcd1 {[%clk 00:03:32]}
{[%emt 00:01:11]} Rcd8 {[%clk 00:06:57]} {[%emt 00:01:05]} 37. Rxd8 {[%clk
00:02:05]} {[%emt 00:01:57]} Nxd8 {[%clk 00:06:58]} {[%emt 00:00:29]} 38. Ng5
{[%clk 00:01:29]} {[%emt 00:01:07]} h6 {[%clk 00:07:03]} {[%emt 00:00:25]} 39.
Nf3 {[%clk 00:01:45]} {[%emt 00:00:13]} Nf7 {[%clk 00:06:19]} {[%emt 00:01:14]}
40. Kg2 {[%clk 00:01:15]} {[%emt 00:01:01]} Bf8 {[%clk 00:04:30]} {[%emt
00:02:18]} 41. g4 {[%clk 00:28:42]} {[%emt 00:03:03]} b5 {[%clk 00:32:08]}
{[%emt 00:02:52]} 42. Qf4 {[%clk 00:27:56]} {[%emt 00:01:16]} Rd8 {[%clk
00:31:45]} {[%emt 00:00:52]} 43. Rg1 {[%clk 00:27:46]} {[%emt 00:00:40]} Qe7
{[%clk 00:23:39]} {[%emt 00:08:36]} 44. gxf5 {[%clk 00:26:07]} {[%emt
00:02:10]} gxf5 {[%clk 00:21:26]} {[%emt 00:02:43]} 45. Kh3+ {[%clk 00:23:18]}
{[%emt 00:03:19]} Bg7 {[%clk 00:20:54]} {[%emt 00:01:02]} 46. Nd4 {[%clk
00:22:41]} {[%emt 00:01:07]} Ra8 {[%clk 00:07:41]} {[%emt 00:13:42]} 47. Nxc6
{[%clk 00:19:21]} {[%emt 00:03:50]} Qd7 {[%clk 00:07:11]} {[%emt 00:01:00]} 48.
Nd4 {[%clk 00:18:45]} {[%emt 00:01:06]} Nd8 {[%clk 00:07:13]} {[%emt 00:00:28]}
49. Qxh6 {[%clk 00:16:35]} {[%emt 00:02:41]} Ra2 {[%clk 00:06:27]} {[%emt
00:01:15]} 50. Bc3 {[%clk 00:15:19]} {[%emt 00:01:46]} Rxf2 {[%clk 00:06:19]}
{[%emt 00:00:39]} 51. Ba5 {[%clk 00:13:28]} {[%emt 00:02:21]} Rf1 {[%clk
00:06:26]} {[%emt 00:00:23]} 52. Rxg7+ {[%clk 00:12:48]} {[%emt 00:01:10]} Qxg7
{[%clk 00:06:37]} {[%emt 00:00:18]} 53. Qxg7+ {[%clk 00:13:11]} {[%emt
00:00:07]} Kxg7 {[%clk 00:07:03]} {[%emt 00:00:04]} 54. Bxd8 {[%clk 00:13:34]}
{[%emt 00:00:07]} Kf7 {[%clk 00:07:17]} {[%emt 00:00:17]} 55. Nxb5 {[%clk
00:13:38]} {[%emt 00:00:25]} Rf3+ {[%clk 00:07:41]} {[%emt 00:00:06]} 56. Kg2
{[%clk 00:13:44]} {[%emt 00:00:24]} Rxe3 {[%clk 00:08:04]} {[%emt 00:00:07]} 57.
Nd6+ {[%clk 00:13:48]} {[%emt 00:00:26]} Kg6 {[%clk 00:08:07]} {[%emt
00:00:27]} 58. b4 {[%clk 00:13:53]} {[%emt 00:00:25]} Rxe5 {[%clk 00:08:02]}
{[%emt 00:00:36]} 59. b5 {[%clk 00:13:49]} {[%emt 00:00:33]} Rd5 {[%clk
00:04:55]} {[%emt 00:03:36]} 60. Bc7 {[%clk 00:11:26]} {[%emt 00:02:54]} Kh5
{[%clk 00:04:43]} {[%emt 00:00:43]} 61. b6 {[%clk 00:11:23]} {[%emt 00:00:32]}
Kxh4 {[%clk 00:04:50]} {[%emt 00:00:24]} 62. b7 {[%clk 00:11:36]} {[%emt
00:00:16]} Rd2+ {[%clk 00:05:09]} {[%emt 00:00:10]} 63. Kf3 {[%clk 00:11:54]}
{[%emt 00:00:12]} Rb2 {[%clk 00:05:22]} {[%emt 00:00:17]} 64. b8=Q {[%clk
00:11:49]} {[%emt 00:00:36]} Rxb8 {[%clk 00:05:46]} {[%emt 00:00:05]} 65. Bxb8
{[%clk 00:12:13]} {[%emt 00:00:06]} Kg5 {[%clk 00:06:08]} {[%emt 00:00:08]} 66.
Nc4 {[%clk 00:12:29]} {[%emt 00:00:14]} Kf6 {[%clk 00:06:18]} {[%emt 00:00:20]}
67. Kf4 {[%clk 00:12:52]} {[%emt 00:00:07]} Ke7 {[%clk 00:05:29]} {[%emt
00:01:18]} 68. Kg5 {[%clk 00:12:55]} {[%emt 00:00:26]} Kd7 {[%clk 00:05:49]}
{[%emt 00:00:11]} 69. Kf6 {[%clk 00:13:05]} {[%emt 00:00:20]} Kc6 {[%clk
00:06:03]} {[%emt 00:00:16]} 70. Kxe6 {[%clk 00:13:29]} {[%emt 00:00:07]} f4
{[%clk 00:06:20]} {[%emt 00:00:12]} 71. Bxf4 {[%clk 00:13:50]} {[%emt
00:00:09]} Kc5 {[%clk 00:06:45]} {[%emt 00:00:05]} 72. Nd6 {[%clk 00:13:50]}
{[%emt 00:00:30]} Kd4 {[%clk 00:07:11]} {[%emt 00:00:05]} 73. Be5+ {[%clk
00:14:11]} {[%emt 00:00:08]} Kc5 {[%clk 00:07:32]} {[%emt 00:00:09]} 74. Bc3
{[%clk 00:14:23]} {[%emt 00:00:19]} Kc6 {[%clk 00:07:52]} {[%emt 00:00:11]} 75.
Bd4 {[%clk 00:14:33]} {[%emt 00:00:17]} Kc7 {[%clk 00:08:14]} {[%emt 00:00:10]}
76. Kd5 {[%clk 00:14:48]} {[%emt 00:00:15]} Kd7 {[%clk 00:08:38]} {[%emt
00:00:06]} 77. Nf5 {[%clk 00:14:13]} {[%emt 00:01:05]} Kc7 {[%clk 00:08:59]}
{[%emt 00:00:09]} 78. Bc5 {[%clk 00:14:30]} {[%emt 00:00:12]} Kd7 {[%clk
00:08:47]} {[%emt 00:00:43]} 79. Bb6 {[%clk 00:14:47]} {[%emt 00:00:12]} Kc8
{[%clk 00:07:56]} {[%emt 00:01:21]} 80. Kc6 {[%clk 00:14:47]} {[%emt 00:00:31]}
Kb8 {[%clk 00:08:19]} {[%emt 00:00:06]} 81. Nd4 {[%clk 00:14:55]} {[%emt
00:00:22]} Kc8 {[%clk 00:08:35]} {[%emt 00:00:14]} 82. Ne6 {[%clk 00:15:18]}
{[%emt 00:00:06]} Kb8 {[%clk 00:08:58]} {[%emt 00:00:07]} 83. Nc7 {[%clk
00:15:33]} {[%emt 00:00:15]} Kc8 {[%clk 00:09:24]} {[%emt 00:00:04]} 84. Ba7
{[%clk 00:15:57]} {[%emt 00:00:07]} Kd8 {[%clk 00:09:46]} {[%emt 00:00:08]} 85.
Nd5 {[%clk 00:16:09]} {[%emt 00:00:18]} Ke8 {[%clk 00:09:56]} {[%emt 00:00:19]}
86. Kd6 {[%clk 00:16:31]} {[%emt 00:00:08]} Kf7 {[%clk 00:10:16]} {[%emt
00:00:10]} 87. Ne7 {[%clk 00:16:47]} {[%emt 00:00:14]} Kg7 {[%clk 00:10:08]}
{[%emt 00:00:38]} 88. Be3 {[%clk 00:17:00]} {[%emt 00:00:17]} Kf6 {[%clk
00:10:31]} {[%emt 00:00:08]} 89. Bf4 {[%clk 00:17:09]} {[%emt 00:00:19]} Kf7
{[%clk 00:10:48]} {[%emt 00:00:15]} 90. Be5 {[%clk 00:17:28]} {[%emt 00:00:11]}
1-0

[Event "Elitserien 2019/2020, round 7-9"]
[Site "Elite stadshotellet, Kungsgatan 6, Vaxjo, Sweden"]
[Date "2020.10.16"]
[Round "1.6"]
[White "Rothen, Hakan"]
[Black "Norberg, Johan"]
[Result "1-0"]
[TimeControl "90 minutes for 40 moves + 30 minutes for the rest of the game + 30 seconds per move from move one."]
[WhiteTitle "FM"]
[BlackTitle "CM"]
[WhiteFideId "1700723"]
[BlackFideId "1707965"]
[WhiteElo "2252"]
[BlackElo "2304"]

1. d4 {[%clk 01:30:57]} {[%emt 00:00:02]} d6 {[%clk 01:30:35]} {[%emt
00:00:25]} 2. c4 {[%clk 01:29:48]} {[%emt 00:01:39]} e5 {[%clk 01:29:58]}
{[%emt 00:01:07]} 3. Nc3 {[%clk 01:27:09]} {[%emt 00:03:09]} exd4 {[%clk
01:27:34]} {[%emt 00:02:55]} 4. Qxd4 {[%clk 01:27:32]} {[%emt 00:00:07]} Nc6
{[%clk 01:26:24]} {[%emt 00:01:40]} 5. Qd2 {[%clk 01:27:50]} {[%emt 00:00:12]}
g6 {[%clk 01:23:59]} {[%emt 00:02:55]} 6. b3 {[%clk 01:28:11]} {[%emt
00:00:09]} Bg7 {[%clk 01:17:12]} {[%emt 00:07:15]} 7. Bb2 {[%clk 01:28:04]}
{[%emt 00:00:38]} f5 {[%clk 01:15:07]} {[%emt 00:02:35]} 8. g3 {[%clk
01:26:10]} {[%emt 00:02:24]} Nf6 {[%clk 01:13:38]} {[%emt 00:01:59]} 9. Bg2
{[%clk 01:26:33]} {[%emt 00:00:08]} O-O {[%clk 01:13:28]} {[%emt 00:00:40]} 10.
Nh3 {[%clk 01:24:44]} {[%emt 00:02:18]} Be6 {[%clk 01:02:40]} {[%emt 00:11:19]}
11. Nf4 {[%clk 01:19:28]} {[%emt 00:05:46]} Bf7 {[%clk 01:00:51]} {[%emt
00:02:19]} 12. O-O-O {[%clk 01:11:31]} {[%emt 00:08:27]} a5 {[%clk 00:58:31]}
{[%emt 00:02:51]} 13. Nfd5 {[%clk 01:09:01]} {[%emt 00:03:00]} Nd7 {[%clk
00:44:15]} {[%emt 00:14:45]} 14. Nb5 {[%clk 01:06:13]} {[%emt 00:03:19]} Bxd5
{[%clk 00:40:04]} {[%emt 00:04:41]} 15. Bxd5+ {[%clk 01:05:01]} {[%emt
00:01:42]} Kh8 {[%clk 00:40:32]} {[%emt 00:00:02]} 16. Bxc6 {[%clk 01:01:11]}
{[%emt 00:04:20]} bxc6 {[%clk 00:40:34]} {[%emt 00:00:28]} 17. Nd4 {[%clk
01:01:23]} {[%emt 00:00:17]} Qe8 {[%clk 00:39:25]} {[%emt 00:01:38]} 18. Nxc6
{[%clk 01:00:27]} {[%emt 00:01:27]} a4 {[%clk 00:37:17]} {[%emt 00:02:38]} 19.
b4 {[%clk 00:49:35]} {[%emt 00:11:22]} Nf6 {[%clk 00:34:07]} {[%emt 00:03:40]}
20. b5 {[%clk 00:47:18]} {[%emt 00:02:48]} a3 {[%clk 00:34:07]} {[%emt
00:00:30]} 21. Bd4 {[%clk 00:43:45]} {[%emt 00:04:03]} Ne4 {[%clk 00:14:46]}
{[%emt 00:19:51]} 22. Bxg7+ {[%clk 00:43:13]} {[%emt 00:01:02]} Kxg7 {[%clk
00:15:14]} {[%emt 00:00:01]} 23. Qd4+ {[%clk 00:43:15]} {[%emt 00:00:28]} Rf6
{[%clk 00:15:18]} {[%emt 00:00:26]} 24. Rd3 {[%clk 00:38:10]} {[%emt 00:05:35]}
Ra4 {[%clk 00:14:22]} {[%emt 00:01:26]} 25. Kb1 {[%clk 00:36:41]} {[%emt
00:02:00]} d5 {[%clk 00:11:49]} {[%emt 00:03:03]} 26. Rc1 {[%clk 00:29:47]}
{[%emt 00:07:23]} dxc4 {[%clk 00:09:41]} {[%emt 00:02:39]} 27. Re3 {[%clk
00:28:43]} {[%emt 00:01:34]} Qa8 {[%clk 00:04:44]} {[%emt 00:05:26]} 28. Ka1
{[%clk 00:22:39]} {[%emt 00:06:35]} c3 {[%clk 00:04:47]} {[%emt 00:00:27]} 29.
Qe5 {[%clk 00:22:33]} {[%emt 00:00:35]} Nd6 {[%clk 00:02:57]} {[%emt 00:02:21]}
30. Qxc3 {[%clk 00:21:49]} {[%emt 00:01:13]} Rc4 {[%clk 00:01:51]} {[%emt
00:01:36]} 31. Re7+ {[%clk 00:20:15]} {[%emt 00:02:04]} Kg8 {[%clk 00:02:05]}
{[%emt 00:00:17]} 32. Qb3 {[%clk 00:20:33]} {[%emt 00:00:11]} Qa4 {[%clk
00:01:26]} {[%emt 00:01:09]} 33. Rxc4 {[%clk 00:16:59]} {[%emt 00:04:04]} Qxc4
{[%clk 00:01:53]} {[%emt 00:00:02]} 34. Qxc4+ {[%clk 00:16:46]} {[%emt
00:00:44]} Nxc4 {[%clk 00:02:22]} {[%emt 00:00:01]} 35. Rxc7 {[%clk 00:15:10]}
{[%emt 00:02:06]} Rd6 {[%clk 00:02:30]} {[%emt 00:00:21]} 36. Kb1 {[%clk
00:15:27]} {[%emt 00:00:13]} Rd2 {[%clk 00:01:23]} {[%emt 00:01:36]} 37. Ne7+
{[%clk 00:12:39]} {[%emt 00:03:18]} Kf8 {[%clk 00:01:52]} {[%emt 00:00:02]} 38.
Rxc4 {[%clk 00:10:07]} {[%emt 00:03:02]} Kxe7 {[%clk 00:01:36]} {[%emt
00:00:46]} 39. Rc3 {[%clk 00:05:44]} {[%emt 00:04:53]} Rb2+ {[%clk 00:01:27]}
{[%emt 00:00:39]} 40. Ka1 {[%clk 00:03:41]} {[%emt 00:02:33]} Kd6 {[%clk
00:01:32]} {[%emt 00:00:23]} 41. Rxa3 {[%clk 00:03:17]} {[%emt 00:00:54]} Rxe2
{[%clk 00:01:44]} {[%emt 00:00:19]} 42. f4 {[%clk 00:30:19]} {[%emt 00:03:29]}
Rxh2 {[%clk 00:20:16]} {[%emt 00:11:58]} 43. Rc3 {[%clk 00:14:08]} {[%emt
00:16:40]} Re2 {[%clk 00:18:22]} {[%emt 00:02:23]} 44. Kb1 {[%clk 00:14:22]}
{[%emt 00:00:17]} Kd7 {[%clk 00:17:55]} {[%emt 00:00:56]} 45. b6 {[%clk
00:11:26]} {[%emt 00:03:27]} Re6 {[%clk 00:15:59]} {[%emt 00:02:26]} 46. b7
{[%clk 00:10:24]} {[%emt 00:01:32]} Rb6+ {[%clk 00:16:24]} {[%emt 00:00:05]} 47.
Rb3 {[%clk 00:10:50]} {[%emt 00:00:04]} Rxb3+ {[%clk 00:16:51]} {[%emt
00:00:03]} 48. axb3 {[%clk 00:11:16]} {[%emt 00:00:04]} Kc7 {[%clk 00:17:17]}
{[%emt 00:00:04]} 49. Kc2 {[%clk 00:11:28]} {[%emt 00:00:18]} h6 {[%clk
00:17:34]} {[%emt 00:00:13]} 50. Kd3 {[%clk 00:11:12]} {[%emt 00:00:46]} g5
{[%clk 00:17:50]} {[%emt 00:00:13]} 51. Kd4 {[%clk 00:11:08]} {[%emt 00:00:34]}
gxf4 {[%clk 00:17:56]} {[%emt 00:00:24]} 52. gxf4 {[%clk 00:11:27]} {[%emt
00:00:12]} h5 {[%clk 00:18:23]} {[%emt 00:00:03]} 53. Ke3 {[%clk 00:11:47]}
{[%emt 00:00:09]} Kxb7 {[%clk 00:18:46]} {[%emt 00:00:07]} 54. Kf3 {[%clk
00:11:59]} {[%emt 00:00:18]} Kc6 {[%clk 00:19:06]} {[%emt 00:00:11]} 55. Kg3
{[%clk 00:12:07]} {[%emt 00:00:22]} Kd5 {[%clk 00:19:34]} {[%emt 00:00:02]} 56.
b4 {[%clk 00:10:47]} {[%emt 00:01:49]} Kc4 {[%clk 00:17:26]} {[%emt 00:02:38]}
57. Kh4 {[%clk 00:10:30]} {[%emt 00:00:48]} Kxb4 {[%clk 00:16:53]} {[%emt
00:01:04]} 58. Kxh5 {[%clk 00:10:44]} {[%emt 00:00:16]} Kc5 {[%clk 00:17:15]}
{[%emt 00:00:07]} 59. Kg5 {[%clk 00:11:07]} {[%emt 00:00:06]} 1-0